[Event "Live Chess"]
[Site "Chess.com"]
[Date "2010.12.04"]
[Round "-"]
[White "cira011"]
[Black "hipposcottimus"]
[Result "0-1"]
[CurrentPosition "5k2/pp4pp/3p4/8/8/1N2N1PR/r6P/6K1 w - -"]
[Timezone "UTC"]
[ECO "B00"]
[ECOUrl "https://www.chess.com/openings/Nimzowitsch-Defense-Kennedy-Variation"]
[UTCDate "2010.12.04"]
[UTCTime "23:30:13"]
[WhiteElo "1771"]
[BlackElo "1615"]
[TimeControl "60"]
[Termination "hipposcottimus won on time"]
[StartTime "23:30:13"]
[EndDate "2010.12.04"]
[EndTime "23:32:12"]
[Link "https://www.chess.com/game/live/74110313"]

1. e4 {[%clk 0:01:00]} 1... e5 {[%clk 0:01:00]} 2. d4 {[%clk 0:00:59]} 2... Nc6 {[%clk 0:00:59.8]} 3. d5 {[%clk 0:00:58.2]} 3... Nce7 {[%clk 0:00:58.6]} 4. Nf3 {[%clk 0:00:57]} 4... d6 {[%clk 0:00:57.6]} 5. c4 {[%clk 0:00:55.8]} 5... c6 {[%clk 0:00:57.4]} 6. Be2 {[%clk 0:00:54.2]} 6... cxd5 {[%clk 0:00:56.5]} 7. cxd5 {[%clk 0:00:54.2]} 7... Ng6 {[%clk 0:00:55.4]} 8. Bb5+ {[%clk 0:00:53.1]} 8... Bd7 {[%clk 0:00:53.5]} 9. Bxd7+ {[%clk 0:00:52.2]} 9... Qxd7 {[%clk 0:00:52.5]} 10. O-O {[%clk 0:00:52.2]} 10... Be7 {[%clk 0:00:52.2]} 11. Bg5 {[%clk 0:00:49.4]} 11... f5 {[%clk 0:00:51.9]} 12. Bxe7 {[%clk 0:00:47.8]} 12... N8xe7 {[%clk 0:00:51.4]} 13. exf5 {[%clk 0:00:47.8]} 13... Qxf5 {[%clk 0:00:50.8]} 14. Nbd2 {[%clk 0:00:45.7]} 14... O-O {[%clk 0:00:49.8]} 15. Re1 {[%clk 0:00:44.5]} 15... Qg4 {[%clk 0:00:48]} 16. g3 {[%clk 0:00:43.1]} 16... Nf4 {[%clk 0:00:46.3]} 17. Re4 {[%clk 0:00:35.6]} 17... Nh3+ {[%clk 0:00:45.8]} 18. Kg2 {[%clk 0:00:32.8]} 18... Qh5 {[%clk 0:00:42.9]} 19. Rh4 {[%clk 0:00:30.3]} 19... Qf5 {[%clk 0:00:39.3]} 20. Rxh3 {[%clk 0:00:27.1]} 20... e4 {[%clk 0:00:39]} 21. Nh4 {[%clk 0:00:23.6]} 21... Qxf2+ {[%clk 0:00:37.9]} 22. Kh1 {[%clk 0:00:20.5]} 22... e3 {[%clk 0:00:37.6]} 23. Nb3 {[%clk 0:00:13.7]} 23... e2 {[%clk 0:00:36.5]} 24. Qg1 {[%clk 0:00:11.6]} 24... e1=Q {[%clk 0:00:32.2]} 25. Qxe1 {[%clk 0:00:09.5]} 25... Nxd5 {[%clk 0:00:23.8]} 26. Qxf2 {[%clk 0:00:07.9]} 26... Rxf2 {[%clk 0:00:23.5]} 27. Kg1 {[%clk 0:00:07.9]} 27... Raf8 {[%clk 0:00:21.7]} 28. Ng2 {[%clk 0:00:04.1]} 28... Rxb2 {[%clk 0:00:21.2]} 29. Rf1 {[%clk 0:00:02.2]} 29... Ne3 {[%clk 0:00:18.2]} 30. Rxf8+ {[%clk 0:00:00.8]} 30... Kxf8 {[%clk 0:00:17.9]} 31. Nxe3 {[%clk 0:00:00.2]} 31... Rxa2 {[%clk 0:00:16.7]} 0-1

[Event "Live Chess"]
[Site "Chess.com"]
[Date "2010.12.04"]
[Round "-"]
[White "hipposcottimus"]
[Black "fonkyzeit"]
[Result "0-1"]
[CurrentPosition "6Q1/4r3/R6K/2p1k3/3b4/1P6/P7/8 w - -"]
[Timezone "UTC"]
[ECO "C00"]
[ECOUrl "https://www.chess.com/openings/French-Defense-Knight-Variation"]
[UTCDate "2010.12.04"]
[UTCTime "23:22:21"]
[WhiteElo "1615"]
[BlackElo "1581"]
[TimeControl "120"]
[Termination "fonkyzeit won on time"]
[StartTime "23:22:21"]
[EndDate "2010.12.04"]
[EndTime "23:26:44"]
[Link "https://www.chess.com/game/live/74108418"]

1. e4 {[%clk 0:02:00]} 1... e6 {[%clk 0:02:00]} 2. Nf3 {[%clk 0:01:59.7]} 2... d6 {[%clk 0:01:59.5]} 3. e5 {[%clk 0:01:59.4]} 3... Be7 {[%clk 0:01:59]} 4. exd6 {[%clk 0:01:58.3]} 4... Bxd6 {[%clk 0:01:58.3]} 5. d4 {[%clk 0:01:57.6]} 5... b6 {[%clk 0:01:57.8]} 6. Nc3 {[%clk 0:01:57.2]} 6... Bb7 {[%clk 0:01:57.2]} 7. Bb5+ {[%clk 0:01:55.4]} 7... Nd7 {[%clk 0:01:54.9]} 8. O-O {[%clk 0:01:52.4]} 8... c6 {[%clk 0:01:54.2]} 9. Bg5 {[%clk 0:01:51.6]} 9... Be7 {[%clk 0:01:52]} 10. Bxc6 {[%clk 0:01:51.3]} 10... Bxc6 {[%clk 0:01:50.6]} 11. Bf4 {[%clk 0:01:48.2]} 11... Ngf6 {[%clk 0:01:47.6]} 12. Re1 {[%clk 0:01:47.9]} 12... O-O {[%clk 0:01:46.1]} 13. Be5 {[%clk 0:01:47.3]} 13... Nd5 {[%clk 0:01:43.3]} 14. Ne4 {[%clk 0:01:45.3]} 14... Nxe5 {[%clk 0:01:40.7]} 15. dxe5 {[%clk 0:01:43.9]} 15... Nf4 {[%clk 0:01:37.4]} 16. Neg5 {[%clk 0:01:42.5]} 16... Qxd1 {[%clk 0:01:35.9]} 17. Raxd1 {[%clk 0:01:38.6]} 17... Bxf3 {[%clk 0:01:34.8]} 18. Nxf3 {[%clk 0:01:38.3]} 18... Rad8 {[%clk 0:01:31.3]} 19. Nd4 {[%clk 0:01:35.1]} 19... Nd5 {[%clk 0:01:28.5]} 20. c3 {[%clk 0:01:34.7]} 20... Rc8 {[%clk 0:01:25.8]} 21. Rf1 {[%clk 0:01:34.3]} 21... f6 {[%clk 0:01:23.8]} 22. f4 {[%clk 0:01:33.5]} 22... fxe5 {[%clk 0:01:22.2]} 23. fxe5 {[%clk 0:01:33.2]} 23... Rxf1+ {[%clk 0:01:20.8]} 24. Kxf1 {[%clk 0:01:33]} 24... Nf4 {[%clk 0:01:19.3]} 25. Kg1 {[%clk 0:01:32.7]} 25... Rf8 {[%clk 0:01:18.2]} 26. g3 {[%clk 0:01:32.2]} 26... Nh5 {[%clk 0:01:17.3]} 27. Rd3 {[%clk 0:01:31.4]} 27... Bg5 {[%clk 0:01:15.8]} 28. Nxe6 {[%clk 0:01:27.5]} 28... Rf5 {[%clk 0:01:09.7]} 29. g4 {[%clk 0:01:26.5]} 29... Rxe5 {[%clk 0:01:07.5]} 30. gxh5 {[%clk 0:01:25.1]} 30... Rxe6 {[%clk 0:01:06.4]} 31. Rg3 {[%clk 0:01:21.9]} 31... Re1+ {[%clk 0:01:04.6]} 32. Kf2 {[%clk 0:01:21.6]} 32... Bf4 {[%clk 0:01:01.3]} 33. Rf3 {[%clk 0:00:39.8]} 33... Re4 {[%clk 0:00:57.2]} 34. Rd3 {[%clk 0:00:36]} 34... Re8 {[%clk 0:00:51.5]} 35. Kf3 {[%clk 0:00:35.3]} 35... Bh6 {[%clk 0:00:50.1]} 36. Rd4 {[%clk 0:00:33.8]} 36... g6 {[%clk 0:00:48.9]} 37. Ra4 {[%clk 0:00:31.7]} 37... a5 {[%clk 0:00:46.3]} 38. c4 {[%clk 0:00:26.8]} 38... g5 {[%clk 0:00:44.4]} 39. c5 {[%clk 0:00:26.5]} 39... bxc5 {[%clk 0:00:41.6]} 40. Rxa5 {[%clk 0:00:25.4]} 40... Rc8 {[%clk 0:00:40.8]} 41. b3 {[%clk 0:00:23.9]} 41... Kg7 {[%clk 0:00:38.3]} 42. Kg4 {[%clk 0:00:22.4]} 42... Kf6 {[%clk 0:00:36.5]} 43. Ra6+ {[%clk 0:00:21.6]} 43... Kg7 {[%clk 0:00:34.8]} 44. Ra4 {[%clk 0:00:20.1]} 44... Kg8 {[%clk 0:00:33]} 45. h4 {[%clk 0:00:18.7]} 45... Bg7 {[%clk 0:00:31.5]} 46. hxg5 {[%clk 0:00:17.5]} 46... Bd4 {[%clk 0:00:29.6]} 47. g6 {[%clk 0:00:16]} 47... hxg6 {[%clk 0:00:28.2]} 48. hxg6 {[%clk 0:00:15.8]} 48... Rc6 {[%clk 0:00:26.8]} 49. Kh5 {[%clk 0:00:15.4]} 49... Kg7 {[%clk 0:00:25.1]} 50. Ra7+ {[%clk 0:00:13.8]} 50... Kg8 {[%clk 0:00:22.7]} 51. Kh6 {[%clk 0:00:12.9]} 51... Rc8 {[%clk 0:00:21.5]} 52. g7 {[%clk 0:00:08]} 52... Re8 {[%clk 0:00:18.4]} 53. Ra5 {[%clk 0:00:06.7]} 53... Re7 {[%clk 0:00:15.8]} 54. Ra8+ {[%clk 0:00:02.1]} 54... Kf7 {[%clk 0:00:07.1]} 55. g8=Q+ {[%clk 0:00:00.9]} 55... Kf6 {[%clk 0:00:05.6]} 56. Ra6+ {[%clk 0:00:00.5]} 56... Ke5 {[%clk 0:00:04.5]} 0-1

[Event "Live Chess"]
[Site "Chess.com"]
[Date "2010.12.04"]
[Round "-"]
[White "place"]
[Black "hipposcottimus"]
[Result "1-0"]
[CurrentPosition "4r2k/pp3Q1p/2p5/4Np2/3Pp3/1PP3P1/P5RP/6K1 w - -"]
[Timezone "UTC"]
[ECO "A00"]
[ECOUrl "https://www.chess.com/openings/Kings-Fianchetto-Opening-1...e5-2.Bg2-d5"]
[UTCDate "2010.12.04"]
[UTCTime "23:19:56"]
[WhiteElo "1729"]
[BlackElo "1624"]
[TimeControl "60"]
[Termination "place won by resignation"]
[StartTime "23:19:56"]
[EndDate "2010.12.04"]
[EndTime "23:21:58"]
[Link "https://www.chess.com/game/live/74107849"]

1. g3 {[%clk 0:01:00]} 1... e5 {[%clk 0:01:00]} 2. Bg2 {[%clk 0:01:00]} 2... d5 {[%clk 0:00:59.8]} 3. b3 {[%clk 0:00:59]} 3... c6 {[%clk 0:00:59.5]} 4. Bb2 {[%clk 0:00:58.2]} 4... e4 {[%clk 0:00:59.3]} 5. e3 {[%clk 0:00:57.4]} 5... Qe7 {[%clk 0:00:58]} 6. Ne2 {[%clk 0:00:56.5]} 6... Nf6 {[%clk 0:00:57.7]} 7. Bxf6 {[%clk 0:00:54.8]} 7... Qxf6 {[%clk 0:00:55.9]} 8. c3 {[%clk 0:00:54.4]} 8... Nd7 {[%clk 0:00:54.1]} 9. O-O {[%clk 0:00:53.6]} 9... Be7 {[%clk 0:00:50.7]} 10. Nd4 {[%clk 0:00:52.1]} 10... Bd6 {[%clk 0:00:49.9]} 11. Ne2 {[%clk 0:00:51.7]} 11... Be5 {[%clk 0:00:48.7]} 12. d4 {[%clk 0:00:49.7]} 12... exd3 {[%clk 0:00:46.4]} 13. Qxd3 {[%clk 0:00:49]} 13... Nc5 {[%clk 0:00:44.9]} 14. Qd2 {[%clk 0:00:43.8]} 14... O-O {[%clk 0:00:42.5]} 15. Na3 {[%clk 0:00:42.6]} 15... Bf5 {[%clk 0:00:39.2]} 16. Rad1 {[%clk 0:00:40.2]} 16... Ne4 {[%clk 0:00:37.3]} 17. Qc1 {[%clk 0:00:35.6]} 17... Qe6 {[%clk 0:00:32.9]} 18. f4 {[%clk 0:00:34]} 18... Nf6 {[%clk 0:00:28.8]} 19. Nd4 {[%clk 0:00:30.2]} 19... Bxd4 {[%clk 0:00:25.1]} 20. exd4 {[%clk 0:00:29.6]} 20... Bh3 {[%clk 0:00:23.9]} 21. Rde1 {[%clk 0:00:28.3]} 21... Qg4 {[%clk 0:00:23]} 22. Rf2 {[%clk 0:00:24.7]} 22... Bxg2 {[%clk 0:00:18.7]} 23. Rxg2 {[%clk 0:00:23.3]} 23... Ne4 {[%clk 0:00:18.4]} 24. Rxe4 {[%clk 0:00:20.8]} 24... dxe4 {[%clk 0:00:16.5]} 25. Qe1 {[%clk 0:00:20.8]} 25... Rae8 {[%clk 0:00:16.2]} 26. Re2 {[%clk 0:00:18.9]} 26... f5 {[%clk 0:00:15.8]} 27. Nc4 {[%clk 0:00:17.3]} 27... Qh3 {[%clk 0:00:15.4]} 28. Ne5 {[%clk 0:00:15.6]} 28... Qh6 {[%clk 0:00:14.7]} 29. Rg2 {[%clk 0:00:13.8]} 29... g5 {[%clk 0:00:14]} 30. Qe3 {[%clk 0:00:10.5]} 30... gxf4 {[%clk 0:00:12.4]} 31. Qxf4 {[%clk 0:00:10.1]} 31... Kh8 {[%clk 0:00:11.1]} 32. Qxh6 {[%clk 0:00:08.9]} 32... Rf6 {[%clk 0:00:10.8]} 33. Qxf6+ {[%clk 0:00:07.7]} 33... Kg8 {[%clk 0:00:09.1]} 34. Qf7+ {[%clk 0:00:06.6]} 34... Kh8 {[%clk 0:00:08.7]} 1-0

[Event "Live Chess"]
[Site "Chess.com"]
[Date "2010.12.04"]
[Round "-"]
[White "hipposcottimus"]
[Black "CryingWolf"]
[Result "1-0"]
[CurrentPosition "2k5/p1p5/Pp6/1P6/3b1q2/7p/5P2/6RK b - -"]
[Timezone "UTC"]
[ECO "C57"]
[ECOUrl "https://www.chess.com/openings/Italian-Game-Fried-Liver-Attack"]
[UTCDate "2010.12.04"]
[UTCTime "23:17:09"]
[WhiteElo "1630"]
[BlackElo "1518"]
[TimeControl "60"]
[Termination "hipposcottimus won on time"]
[StartTime "23:17:09"]
[EndDate "2010.12.04"]
[EndTime "23:19:21"]
[Link "https://www.chess.com/game/live/74107240"]

1. e4 {[%clk 0:01:00]} 1... e5 {[%clk 0:01:00]} 2. Nf3 {[%clk 0:00:59.4]} 2... Nc6 {[%clk 0:00:59.6]} 3. Bc4 {[%clk 0:00:59.1]} 3... Nf6 {[%clk 0:00:59]} 4. Ng5 {[%clk 0:00:57.6]} 4... d5 {[%clk 0:00:58.5]} 5. exd5 {[%clk 0:00:57.1]} 5... Nxd5 {[%clk 0:00:56]} 6. Nxf7 {[%clk 0:00:54.7]} 6... Qe7 {[%clk 0:00:50.2]} 7. Bxd5 {[%clk 0:00:48.4]} 7... Be6 {[%clk 0:00:47.9]} 8. Nxh8 {[%clk 0:00:43.9]} 8... Bxd5 {[%clk 0:00:46.5]} 9. O-O {[%clk 0:00:43.7]} 9... O-O-O {[%clk 0:00:45.4]} 10. d3 {[%clk 0:00:41.3]} 10... Kb8 {[%clk 0:00:44.4]} 11. c4 {[%clk 0:00:37.1]} 11... Be6 {[%clk 0:00:42.8]} 12. Nc3 {[%clk 0:00:36.8]} 12... g5 {[%clk 0:00:41.9]} 13. b4 {[%clk 0:00:36.5]} 13... Bg7 {[%clk 0:00:40.7]} 14. b5 {[%clk 0:00:36.3]} 14... Nd4 {[%clk 0:00:39.8]} 15. Nd5 {[%clk 0:00:34.3]} 15... Bxd5 {[%clk 0:00:38.5]} 16. cxd5 {[%clk 0:00:33.9]} 16... Bxh8 {[%clk 0:00:37.7]} 17. Re1 {[%clk 0:00:33.5]} 17... Bf6 {[%clk 0:00:36.6]} 18. Be3 {[%clk 0:00:33.2]} 18... Rxd5 {[%clk 0:00:35.4]} 19. Bxd4 {[%clk 0:00:32.4]} 19... Rxd4 {[%clk 0:00:34.6]} 20. Rb1 {[%clk 0:00:31.8]} 20... Qd6 {[%clk 0:00:33.5]} 21. a4 {[%clk 0:00:31.4]} 21... e4 {[%clk 0:00:32.6]} 22. a5 {[%clk 0:00:31]} 22... Rxd3 {[%clk 0:00:29.9]} 23. Qg4 {[%clk 0:00:29]} 23... b6 {[%clk 0:00:26.2]} 24. Qxe4 {[%clk 0:00:27.7]} 24... Rd4 {[%clk 0:00:20.7]} 25. Qe8+ {[%clk 0:00:26.4]} 25... Kb7 {[%clk 0:00:19.4]} 26. Qd7 {[%clk 0:00:25.2]} 26... Qxd7 {[%clk 0:00:17.9]} 27. a6+ {[%clk 0:00:25]} 27... Kc8 {[%clk 0:00:16]} 28. Re2 {[%clk 0:00:23.9]} 28... Rd1+ {[%clk 0:00:14.2]} 29. Re1 {[%clk 0:00:23.6]} 29... Rxe1+ {[%clk 0:00:12]} 30. Rxe1 {[%clk 0:00:23.4]} 30... Qd2 {[%clk 0:00:11.4]} 31. Rf1 {[%clk 0:00:22.7]} 31... Bd4 {[%clk 0:00:10.3]} 32. g3 {[%clk 0:00:22.2]} 32... Qe2 {[%clk 0:00:09.2]} 33. Kg2 {[%clk 0:00:21.9]} 33... Qe4+ {[%clk 0:00:08]} 34. Kg1 {[%clk 0:00:21.5]} 34... Qf3 {[%clk 0:00:07.3]} 35. h3 {[%clk 0:00:18.8]} 35... h5 {[%clk 0:00:06.9]} 36. h4 {[%clk 0:00:17.1]} 36... gxh4 {[%clk 0:00:05.8]} 37. gxh4 {[%clk 0:00:16]} 37... Qg4+ {[%clk 0:00:04.6]} 38. Kh2 {[%clk 0:00:15.5]} 38... Qxh4+ {[%clk 0:00:03.8]} 39. Kg1 {[%clk 0:00:15]} 39... Qg4+ {[%clk 0:00:02.9]} 40. Kh2 {[%clk 0:00:14.3]} 40... h4 {[%clk 0:00:02.5]} 41. Rh1 {[%clk 0:00:13.4]} 41... h3 {[%clk 0:00:01.6]} 42. Rg1 {[%clk 0:00:11.4]} 42... Qf4+ {[%clk 0:00:00.1]} 43. Kh1 {[%clk 0:00:09.5]} 1-0

[Event "Live Chess"]
[Site "Chess.com"]
[Date "2010.12.04"]
[Round "-"]
[White "PaulOxley"]
[Black "hipposcottimus"]
[Result "1-0"]
[CurrentPosition "8/8/8/1P3q1k/P7/1KP5/6p1/8 b - -"]
[Timezone "UTC"]
[ECO "C31"]
[ECOUrl "https://www.chess.com/openings/Kings-Gambit-Declined-Falkbeer-Blackburne-Attack"]
[UTCDate "2010.12.04"]
[UTCTime "23:14:14"]
[WhiteElo "1479"]
[BlackElo "1624"]
[TimeControl "60"]
[Termination "PaulOxley won on time"]
[StartTime "23:14:14"]
[EndDate "2010.12.04"]
[EndTime "23:16:33"]
[Link "https://www.chess.com/game/live/74106568"]

1. e4 {[%clk 0:01:00]} 1... e5 {[%clk 0:01:00]} 2. f4 {[%clk 0:01:00]} 2... d5 {[%clk 0:00:58.4]} 3. Nf3 {[%clk 0:00:59.3]} 3... dxe4 {[%clk 0:00:56.6]} 4. Nxe5 {[%clk 0:00:58.1]} 4... Qh4+ {[%clk 0:00:55.1]} 5. g3 {[%clk 0:00:56.4]} 5... Qe7 {[%clk 0:00:50.7]} 6. d3 {[%clk 0:00:54.9]} 6... Nf6 {[%clk 0:00:49.7]} 7. dxe4 {[%clk 0:00:52.2]} 7... Bg4 {[%clk 0:00:49.4]} 8. Be2 {[%clk 0:00:49.7]} 8... Qb4+ {[%clk 0:00:48.7]} 9. Bd2 {[%clk 0:00:48.2]} 9... Bxe2 {[%clk 0:00:45.8]} 10. Qxe2 {[%clk 0:00:47]} 10... Qxe4 {[%clk 0:00:42.8]} 11. Qxe4 {[%clk 0:00:45.1]} 11... Nxe4 {[%clk 0:00:42.5]} 12. Nc3 {[%clk 0:00:44.6]} 12... f6 {[%clk 0:00:37.4]} 13. Nxe4 {[%clk 0:00:43.1]} 13... fxe5 {[%clk 0:00:37.1]} 14. O-O-O {[%clk 0:00:42.3]} 14... Bd6 {[%clk 0:00:36.6]} 15. fxe5 {[%clk 0:00:40.9]} 15... Bxe5 {[%clk 0:00:34.7]} 16. Rhe1 {[%clk 0:00:39.9]} 16... O-O {[%clk 0:00:33.6]} 17. Ng5 {[%clk 0:00:38.5]} 17... Bf6 {[%clk 0:00:32]} 18. Ne4 {[%clk 0:00:36.8]} 18... Nc6 {[%clk 0:00:31.7]} 19. Nxf6+ {[%clk 0:00:35.6]} 19... Rxf6 {[%clk 0:00:31.5]} 20. Bc3 {[%clk 0:00:34.3]} 20... Raf8 {[%clk 0:00:31.2]} 21. Bxf6 {[%clk 0:00:32.8]} 21... Rxf6 {[%clk 0:00:29.8]} 22. Re8+ {[%clk 0:00:30.6]} 22... Kf7 {[%clk 0:00:27.6]} 23. Rc8 {[%clk 0:00:28.9]} 23... Ne5 {[%clk 0:00:22.4]} 24. Rxc7+ {[%clk 0:00:27.8]} 24... Kg6 {[%clk 0:00:22.1]} 25. Rxb7 {[%clk 0:00:26.8]} 25... Nf3 {[%clk 0:00:19.7]} 26. Rxa7 {[%clk 0:00:26.8]} 26... Nxh2 {[%clk 0:00:18.7]} 27. Ra5 {[%clk 0:00:24.6]} 27... Nf1 {[%clk 0:00:18.1]} 28. Rxf1 {[%clk 0:00:23.3]} 28... Rxf1+ {[%clk 0:00:16.5]} 29. Kd2 {[%clk 0:00:22.4]} 29... Rg1 {[%clk 0:00:16.2]} 30. Kc3 {[%clk 0:00:18.6]} 30... Rxg3+ {[%clk 0:00:14.2]} 31. Kd2 {[%clk 0:00:17.5]} 31... Rg2+ {[%clk 0:00:13.5]} 32. Kc3 {[%clk 0:00:16.6]} 32... Rg3+ {[%clk 0:00:13.3]} 33. Kd2 {[%clk 0:00:15.1]} 33... Rg2+ {[%clk 0:00:12.9]} 34. Kc1 {[%clk 0:00:14.2]} 34... h5 {[%clk 0:00:12.6]} 35. b3 {[%clk 0:00:13]} 35... h4 {[%clk 0:00:12.1]} 36. Kb2 {[%clk 0:00:12.2]} 36... h3 {[%clk 0:00:11.2]} 37. Ra6+ {[%clk 0:00:11.6]} 37... Kh5 {[%clk 0:00:08]} 38. Ra5+ {[%clk 0:00:10.8]} 38... g5 {[%clk 0:00:07.7]} 39. Ra4 {[%clk 0:00:09.7]} 39... h2 {[%clk 0:00:07.4]} 40. a3 {[%clk 0:00:08.7]} 40... h1=Q {[%clk 0:00:06]} 41. Kc3 {[%clk 0:00:08.5]} 41... Qh3+ {[%clk 0:00:04.5]} 42. Kb4 {[%clk 0:00:07.5]} 42... Rg4+ {[%clk 0:00:04.2]} 43. Ka5 {[%clk 0:00:07.5]} 43... Rxa4+ {[%clk 0:00:03.8]} 44. Kxa4 {[%clk 0:00:06.2]} 44... Qg4+ {[%clk 0:00:01.5]} 45. b4 {[%clk 0:00:06.2]} 45... Qf5 {[%clk 0:00:01]} 46. Kb3 {[%clk 0:00:05.7]} 46... g4 {[%clk 0:00:00.6]} 47. a4 {[%clk 0:00:05.7]} 47... g3 {[%clk 0:00:00.3]} 48. b5 {[%clk 0:00:05.7]} 48... g2 {[%clk 0:00:00.1]} 49. c3 {[%clk 0:00:05.7]} 1-0

[Event "Live Chess"]
[Site "Chess.com"]
[Date "2010.12.04"]
[Round "-"]
[White "hipposcottimus"]
[Black "MyChessSatan"]
[Result "0-1"]
[CurrentPosition "r7/pp2r2k/2p1bp2/2Pnp3/1P3P2/8/P5PP/R4K2 w - -"]
[Timezone "UTC"]
[ECO "C00"]
[ECOUrl "https://www.chess.com/openings/French-Defense-Knight-Variation"]
[UTCDate "2010.12.04"]
[UTCTime "01:29:20"]
[WhiteElo "1635"]
[BlackElo "1923"]
[TimeControl "60"]
[Termination "MyChessSatan won by resignation"]
[StartTime "01:29:20"]
[EndDate "2010.12.04"]
[EndTime "01:30:32"]
[Link "https://www.chess.com/game/live/73817349"]

1. e4 {[%clk 0:01:00]} 1... e6 {[%clk 0:01:00]} 2. Nf3 {[%clk 0:00:59.1]} 2... d6 {[%clk 0:01:00]} 3. d4 {[%clk 0:00:58.5]} 3... c6 {[%clk 0:01:00]} 4. c4 {[%clk 0:00:57.9]} 4... Nf6 {[%clk 0:00:59.6]} 5. Nc3 {[%clk 0:00:57.5]} 5... Be7 {[%clk 0:00:58.3]} 6. e5 {[%clk 0:00:57]} 6... dxe5 {[%clk 0:00:56.9]} 7. dxe5 {[%clk 0:00:56.7]} 7... Qxd1+ {[%clk 0:00:55.3]} 8. Nxd1 {[%clk 0:00:56.4]} 8... Nfd7 {[%clk 0:00:54.7]} 9. Bd3 {[%clk 0:00:55.9]} 9... O-O {[%clk 0:00:54.2]} 10. Kf1 {[%clk 0:00:55.6]} 10... Re8 {[%clk 0:00:53]} 11. Ke2 {[%clk 0:00:55.4]} 11... Nf8 {[%clk 0:00:52.6]} 12. Re1 {[%clk 0:00:55.1]} 12... Nbd7 {[%clk 0:00:51.8]} 13. Kf1 {[%clk 0:00:54.7]} 13... g6 {[%clk 0:00:50.4]} 14. Bc2 {[%clk 0:00:52.9]} 14... Nc5 {[%clk 0:00:48.8]} 15. Bh6 {[%clk 0:00:52.5]} 15... Nfd7 {[%clk 0:00:46.1]} 16. b4 {[%clk 0:00:52.1]} 16... Na6 {[%clk 0:00:44.2]} 17. Ng5 {[%clk 0:00:51.5]} 17... Nc7 {[%clk 0:00:43.1]} 18. c5 {[%clk 0:00:49.4]} 18... Bf8 {[%clk 0:00:42]} 19. Re3 {[%clk 0:00:48.7]} 19... Bxh6 {[%clk 0:00:40.5]} 20. Rg3 {[%clk 0:00:46.9]} 20... Bxg5 {[%clk 0:00:36.9]} 21. Rxg5 {[%clk 0:00:46.6]} 21... f6 {[%clk 0:00:36.2]} 22. Rg3 {[%clk 0:00:46.2]} 22... Nxe5 {[%clk 0:00:33.9]} 23. Ne3 {[%clk 0:00:45.9]} 23... Re7 {[%clk 0:00:32.9]} 24. Ng4 {[%clk 0:00:42.4]} 24... Nxg4 {[%clk 0:00:30.2]} 25. Rxg4 {[%clk 0:00:42.2]} 25... e5 {[%clk 0:00:29.7]} 26. Bxg6 {[%clk 0:00:40.7]} 26... Bxg4 {[%clk 0:00:28.1]} 27. Bxh7+ {[%clk 0:00:38.5]} 27... Kxh7 {[%clk 0:00:28.1]} 28. f3 {[%clk 0:00:38]} 28... Be6 {[%clk 0:00:25.5]} 29. f4 {[%clk 0:00:37.3]} 29... Nd5 {[%clk 0:00:25.5]} 0-1

[Event "Live Chess"]
[Site "Chess.com"]
[Date "2010.12.04"]
[Round "-"]
[White "MyChessSatan"]
[Black "hipposcottimus"]
[Result "1-0"]
[CurrentPosition "3R1k2/2Q5/8/8/2N5/6Pp/1P5K/5N2 b - -"]
[Timezone "UTC"]
[ECO "A00"]
[ECOUrl "https://www.chess.com/openings/Mieses-Opening-1...d5"]
[UTCDate "2010.12.04"]
[UTCTime "01:27:06"]
[WhiteElo "1923"]
[BlackElo "1635"]
[TimeControl "60"]
[Termination "MyChessSatan won by checkmate"]
[StartTime "01:27:06"]
[EndDate "2010.12.04"]
[EndTime "01:29:10"]
[Link "https://www.chess.com/game/live/73816824"]

1. d3 {[%clk 0:01:00]} 1... d5 {[%clk 0:01:00]} 2. c3 {[%clk 0:01:00]} 2... e5 {[%clk 0:00:58.3]} 3. Nd2 {[%clk 0:00:58.8]} 3... c6 {[%clk 0:00:57.5]} 4. g3 {[%clk 0:00:58.4]} 4... Nd7 {[%clk 0:00:57]} 5. Bg2 {[%clk 0:00:58.4]} 5... Nc5 {[%clk 0:00:56.5]} 6. Ngf3 {[%clk 0:00:57.9]} 6... Be6 {[%clk 0:00:55.6]} 7. Nxe5 {[%clk 0:00:56.1]} 7... f6 {[%clk 0:00:55.3]} 8. Nef3 {[%clk 0:00:55.2]} 8... Ne7 {[%clk 0:00:55]} 9. O-O {[%clk 0:00:54.8]} 9... Ng6 {[%clk 0:00:54.7]} 10. Re1 {[%clk 0:00:54.4]} 10... Bd6 {[%clk 0:00:53.9]} 11. Nf1 {[%clk 0:00:54]} 11... O-O {[%clk 0:00:53.1]} 12. Ne3 {[%clk 0:00:53.6]} 12... Qd7 {[%clk 0:00:47.3]} 13. Nf1 {[%clk 0:00:52.6]} 13... Bh3 {[%clk 0:00:45.9]} 14. Bxh3 {[%clk 0:00:50.5]} 14... Qxh3 {[%clk 0:00:45.6]} 15. Nd4 {[%clk 0:00:46.8]} 15... f5 {[%clk 0:00:43.7]} 16. f4 {[%clk 0:00:45.9]} 16... Qg4 {[%clk 0:00:40.5]} 17. e3 {[%clk 0:00:43.4]} 17... Nh4 {[%clk 0:00:36.5]} 18. Qxg4 {[%clk 0:00:38.2]} 18... fxg4 {[%clk 0:00:36.2]} 19. gxh4 {[%clk 0:00:37.2]} 19... g3 {[%clk 0:00:34.5]} 20. hxg3 {[%clk 0:00:35]} 20... Rae8 {[%clk 0:00:34.2]} 21. Kg2 {[%clk 0:00:33.7]} 21... Nxd3 {[%clk 0:00:33.4]} 22. Re2 {[%clk 0:00:31.9]} 22... Nxf4+ {[%clk 0:00:28.7]} 23. exf4 {[%clk 0:00:29.1]} 23... Rxe2+ {[%clk 0:00:27.6]} 24. Nxe2 {[%clk 0:00:28.2]} 24... Bxf4 {[%clk 0:00:26.3]} 25. Bxf4 {[%clk 0:00:26.1]} 25... Rxf4 {[%clk 0:00:25.8]} 26. Nxf4 {[%clk 0:00:24.7]} 26... d4 {[%clk 0:00:25.5]} 27. cxd4 {[%clk 0:00:23]} 27... c5 {[%clk 0:00:25.2]} 28. dxc5 {[%clk 0:00:21.1]} 28... b6 {[%clk 0:00:24.9]} 29. cxb6 {[%clk 0:00:20.1]} 29... axb6 {[%clk 0:00:24.3]} 30. Re1 {[%clk 0:00:17.4]} 30... g5 {[%clk 0:00:24]} 31. Nd5 {[%clk 0:00:17]} 31... Kf7 {[%clk 0:00:23.4]} 32. Nxb6 {[%clk 0:00:15.3]} 32... h6 {[%clk 0:00:23]} 33. Nc4 {[%clk 0:00:15.3]} 33... Kg6 {[%clk 0:00:22.4]} 34. a4 {[%clk 0:00:14.8]} 34... Kf5 {[%clk 0:00:22]} 35. hxg5 {[%clk 0:00:13.7]} 35... Kxg5 {[%clk 0:00:21.3]} 36. Nfe3 {[%clk 0:00:12.4]} 36... Kg6 {[%clk 0:00:21.1]} 37. a5 {[%clk 0:00:11.7]} 37... h5 {[%clk 0:00:20.8]} 38. a6 {[%clk 0:00:11.5]} 38... h4 {[%clk 0:00:20.6]} 39. a7 {[%clk 0:00:11.2]} 39... h3+ {[%clk 0:00:19.5]} 40. Kh2 {[%clk 0:00:10.4]} 40... Kg5 {[%clk 0:00:18]} 41. a8=Q {[%clk 0:00:10.4]} 41... Kh5 {[%clk 0:00:16.5]} 42. Qa5+ {[%clk 0:00:10.4]} 42... Kg6 {[%clk 0:00:15.7]} 43. Nf1 {[%clk 0:00:08.4]} 43... Kf7 {[%clk 0:00:15]} 44. Rd1 {[%clk 0:00:08.4]} 44... Kf6 {[%clk 0:00:14.2]} 45. Rd6+ {[%clk 0:00:08]} 45... Ke7 {[%clk 0:00:13.1]} 46. Qc7+ {[%clk 0:00:08]} 46... Kf8 {[%clk 0:00:11.6]} 47. Rd8# {[%clk 0:00:08]} 1-0